[Event "NJSK 2026 Jeugd C"]
[Site "Helmond, Netherlands"]
[Date "2026.04.27"]
[Round "3.12"]
[White "Tkacenko, Kostia"]
[Black "Huang, Vincent"]
[Result "0-1"]
[TimeControl "90min/40moves + 30sec/move"]
[WhiteTitle "-"]
[BlackTitle "-"]
[WhiteFideId "40120708"]
[BlackFideId "40104184"]
[WhiteElo "1552"]
[BlackElo "1855"]

1. e4 {[%clk 01:30:59]} c5 {[%clk 01:30:52]} {[%emt 00:00:09]} 2. Nf3 {[%clk
01:31:25]} {[%emt 00:00:04]} d6 {[%clk 01:31:16]} {[%emt 00:00:06]} 3. d4
{[%clk 01:31:40]} {[%emt 00:00:15]} cxd4 {[%clk 01:31:38]} {[%emt 00:00:08]} 4.
Nxd4 {[%clk 01:31:59]} {[%emt 00:00:11]} Nf6 {[%clk 01:31:51]} {[%emt
00:00:17]} 5. Nc3 {[%clk 01:32:18]} {[%emt 00:00:11]} g6 {[%clk 01:32:00]}
{[%emt 00:00:21]} 6. Be2 {[%clk 01:31:33]} {[%emt 00:01:15]} Bg7 {[%clk
01:32:11]} {[%emt 00:00:18]} 7. Be3 {[%clk 01:31:29]} {[%emt 00:00:34]} O-O
{[%clk 01:31:02]} {[%emt 00:01:39]} 8. Qd2 {[%clk 01:30:27]} {[%emt 00:01:33]}
Nc6 {[%clk 01:28:54]} {[%emt 00:02:38]} 9. O-O-O {[%clk 01:28:37]} {[%emt
00:02:20]} a6 {[%clk 01:15:38]} {[%emt 00:13:46]} 10. Nxc6 {[%clk 01:25:37]}
{[%emt 00:03:30]} bxc6 {[%clk 01:15:47]} {[%emt 00:00:21]} 11. Bh6 {[%clk
01:22:24]} {[%emt 00:03:43]} Qb6 {[%clk 01:09:43]} {[%emt 00:06:33]} 12. Bxg7
{[%clk 01:21:11]} {[%emt 00:01:44]} Kxg7 {[%clk 01:10:03]} {[%emt 00:00:09]} 13.
Rdf1 {[%clk 01:19:08]} {[%emt 00:02:34]} Rb8 {[%clk 01:08:38]} {[%emt
00:01:55]} 14. b3 {[%clk 01:15:11]} {[%emt 00:04:27]} Qb4 {[%clk 01:06:54]}
{[%emt 00:02:12]} 15. f3 {[%clk 01:14:23]} {[%emt 00:01:19]} e5 {[%clk
01:02:10]} {[%emt 00:05:14]} 16. h4 {[%clk 01:07:22]} {[%emt 00:07:31]} Nh5
{[%clk 00:58:43]} {[%emt 00:03:56]} 17. Qe1 {[%clk 01:05:29]} {[%emt 00:02:24]}
h6 {[%clk 00:53:01]} {[%emt 00:06:13]} 18. Nb1 {[%clk 01:04:39]} {[%emt
00:01:20]} Qb7 {[%clk 00:46:07]} {[%emt 00:07:21]} 19. Nc3 {[%clk 01:01:59]}
{[%emt 00:03:12]} Be6 {[%clk 00:42:02]} {[%emt 00:04:35]} 20. g3 {[%clk
00:58:54]} {[%emt 00:03:35]} Qb6 {[%clk 00:38:38]} {[%emt 00:03:53]} 21. Nd1
{[%clk 00:56:29]} {[%emt 00:02:55]} Qc5 {[%clk 00:32:14]} {[%emt 00:06:52]} 22.
Kb1 {[%clk 00:51:54]} {[%emt 00:05:08]} a5 {[%clk 00:27:51]} {[%emt 00:04:53]}
23. f4 {[%clk 00:49:58]} {[%emt 00:02:27]} a4 {[%clk 00:25:56]} {[%emt
00:02:25]} 24. Bxh5 {[%clk 00:49:53]} {[%emt 00:00:34]} axb3 {[%clk 00:25:28]}
{[%emt 00:00:57]} 25. axb3 {[%clk 00:49:59]} {[%emt 00:00:24]} Bxb3 {[%clk
00:24:59]} {[%emt 00:00:59]} 26. cxb3 {[%clk 00:50:04]} {[%emt 00:00:25]} Rxb3+
{[%clk 00:25:16]} {[%emt 00:00:13]} 27. Nb2 {[%clk 00:50:25]} {[%emt 00:00:09]}
Rxb2+ {[%clk 00:25:18]} {[%emt 00:00:28]} 28. Kxb2 {[%clk 00:50:46]} {[%emt
00:00:09]} Rb8+ {[%clk 00:25:42]} {[%emt 00:00:06]} 29. Ka2 {[%clk 00:50:32]}
{[%emt 00:00:44]} Qa7+ {[%clk 00:26:04]} {[%emt 00:00:07]} 30. Qa5 {[%clk
00:51:00]} {[%emt 00:00:04]} Qxa5# {[%clk 00:26:25]} {[%emt 00:00:08]} 31. Ra1
{[%emt 00:00:16]} 0-1

[Event "NJSK 2026 Jeugd C"]
[Site "Helmond, Netherlands"]
[Date "2026.04.27"]
[Round "3.13"]
[White "Gupta, Akul"]
[Black "Nair, Pranav Prasobh"]
[Result "1-0"]
[TimeControl "90min/40moves + 30sec/move"]
[WhiteTitle "-"]
[BlackTitle "-"]
[WhiteFideId "1084194"]
[BlackFideId "40109135"]
[WhiteElo "2017"]
[BlackElo "1747"]

1. d4 {[%clk 01:30:59]} Nf6 {[%clk 01:29:40]} {[%emt 00:01:21]} 2. Nc3 {[%clk
01:31:22]} {[%emt 00:00:06]} d5 {[%clk 01:30:02]} {[%emt 00:00:09]} 3. Bf4
{[%clk 01:31:46]} {[%emt 00:00:05]} c5 {[%clk 01:30:26]} {[%emt 00:00:06]} 4.
e4 {[%clk 01:32:12]} {[%emt 00:00:04]} Nxe4 {[%clk 01:30:46]} {[%emt 00:00:09]}
5. Nxe4 {[%clk 01:32:33]} {[%emt 00:00:10]} dxe4 {[%clk 01:31:08]} {[%emt
00:00:08]} 6. dxc5 {[%clk 01:32:59]} {[%emt 00:00:04]} Nd7 {[%clk 01:31:15]}
{[%emt 00:00:23]} 7. b4 {[%clk 01:32:14]} {[%emt 00:01:14]} e5 {[%clk
01:30:26]} {[%emt 00:01:19]} 8. Be3 {[%clk 01:31:59]} {[%emt 00:00:45]} Be7
{[%clk 01:27:33]} {[%emt 00:03:23]} 9. Qd5 {[%clk 01:22:41]} {[%emt 00:09:48]}
f5 {[%clk 01:23:11]} {[%emt 00:04:52]} 10. Bc4 {[%clk 01:23:01]} {[%emt
00:00:11]} Rf8 {[%clk 01:22:19]} {[%emt 00:01:22]} 11. f4 {[%clk 01:06:31]}
{[%emt 00:17:00]} exf4 {[%clk 01:12:49]} {[%emt 00:09:59]} 12. Bxf4 {[%clk
01:06:23]} {[%emt 00:00:38]} Nf6 {[%clk 01:12:34]} {[%emt 00:00:46]} 13. Bb5+
{[%clk 01:06:43]} {[%emt 00:00:10]} Bd7 {[%clk 01:12:30]} {[%emt 00:00:34]} 14.
Qxb7 {[%clk 01:06:54]} {[%emt 00:00:19]} Bxb5 {[%clk 01:09:38]} {[%emt
00:03:22]} 15. Qxb5+ {[%clk 01:07:17]} {[%emt 00:00:07]} Qd7 {[%clk 01:10:00]}
{[%emt 00:00:08]} 16. Qxd7+ {[%clk 01:05:20]} {[%emt 00:02:27]} Kxd7 {[%clk
01:09:37]} {[%emt 00:00:53]} 17. O-O-O+ {[%clk 01:01:35]} {[%emt 00:04:15]} Kc6
{[%clk 01:07:33]} {[%emt 00:02:34]} 18. Ne2 {[%clk 01:01:17]} {[%emt 00:00:47]}
Nd5 {[%clk 00:59:02]} {[%emt 00:09:02]} 19. Nd4+ {[%clk 01:01:40]} {[%emt
00:00:07]} Kb7 {[%clk 00:59:18]} {[%emt 00:00:13]} 20. Ne6 {[%clk 01:01:27]}
{[%emt 00:00:43]} Rf6 {[%clk 00:55:54]} {[%emt 00:03:55]} 21. Rxd5 {[%clk
01:00:37]} {[%emt 00:01:20]} Rxe6 {[%clk 00:56:14]} {[%emt 00:00:10]} 22. c4
{[%clk 01:00:55]} {[%emt 00:00:12]} g5 {[%clk 00:55:32]} {[%emt 00:01:12]} 23.
Rd7+ {[%clk 01:00:02]} {[%emt 00:01:23]} Ka6 {[%clk 00:55:47]} {[%emt
00:00:16]} 24. Bc7 {[%clk 01:00:24]} {[%emt 00:00:08]} Kb7 {[%clk 00:55:17]}
{[%emt 00:01:00]} 25. Bd6+ {[%clk 00:59:27]} {[%emt 00:01:27]} Kc8 {[%clk
00:55:36]} {[%emt 00:00:11]} 26. Rxe7 {[%clk 00:59:37]} {[%emt 00:00:21]} Rxe7
{[%clk 00:55:57]} {[%emt 00:00:08]} 27. Bxe7 {[%clk 01:00:02]} {[%emt
00:00:05]} Kd7 {[%clk 00:56:20]} {[%emt 00:00:07]} 28. Bxg5 {[%clk 01:00:28]}
{[%emt 00:00:04]} Rg8 {[%clk 00:56:42]} {[%emt 00:00:08]} 29. Rd1+ {[%clk
01:00:19]} {[%emt 00:00:39]} Ke6 {[%clk 00:57:00]} {[%emt 00:00:12]} 30. c6
{[%clk 01:00:18]} {[%emt 00:00:31]} Rc8 {[%clk 00:57:12]} {[%emt 00:00:19]} 31.
b5 {[%clk 01:00:32]} {[%emt 00:00:15]} a6 {[%clk 00:57:37]} {[%emt 00:00:05]}
32. Rd8 {[%clk 00:59:55]} {[%emt 00:01:07]} Rc7 {[%clk 00:57:40]} {[%emt
00:00:28]} 33. Bf4 {[%clk 01:00:17]} {[%emt 00:00:08]} Rg7 {[%clk 00:57:59]}
{[%emt 00:00:09]} 34. c7 {[%clk 01:00:43]} {[%emt 00:00:05]} Rxg2 {[%clk
00:58:23]} {[%emt 00:00:05]} 35. c8=Q+ {[%clk 01:01:09]} {[%emt 00:00:05]} 1-0

[Event "NJSK 2026 Jeugd C"]
[Site "Helmond, Netherlands"]
[Date "2026.04.27"]
[Round "3.14"]
[White "Huang, Ziyang"]
[Black "Ozbek, Ahmet Naim"]
[Result "1-0"]
[TimeControl "90min/40moves + 30sec/move"]
[WhiteTitle "-"]
[BlackTitle "-"]
[WhiteFideId "40105288"]
[BlackFideId "40101975"]
[WhiteElo "1721"]
[BlackElo "1869"]

1. e4 {[%clk 01:30:58]} {[%emt 00:00:02]} e5 {[%clk 01:30:13]} {[%emt
00:00:47]} 2. Nf3 {[%clk 01:31:16]} {[%emt 00:00:13]} Nc6 {[%clk 01:30:38]}
{[%emt 00:00:05]} 3. Bb5 {[%clk 01:31:41]} {[%emt 00:00:05]} a6 {[%clk
01:31:04]} {[%emt 00:00:04]} 4. Ba4 {[%clk 01:32:07]} {[%emt 00:00:04]} Nf6
{[%clk 01:31:30]} {[%emt 00:00:04]} 5. O-O {[%clk 01:32:19]} {[%emt 00:00:17]}
Be7 {[%clk 01:31:52]} {[%emt 00:00:08]} 6. Re1 {[%clk 01:32:39]} {[%emt
00:00:10]} b5 {[%clk 01:32:18]} {[%emt 00:00:05]} 7. Bb3 {[%clk 01:33:05]}
{[%emt 00:00:04]} d6 {[%clk 01:32:45]} {[%emt 00:00:03]} 8. c3 {[%clk
01:33:27]} {[%emt 00:00:08]} O-O {[%clk 01:33:09]} {[%emt 00:00:06]} 9. d4
{[%clk 01:33:13]} {[%emt 00:00:44]} Bg4 {[%clk 01:33:30]} {[%emt 00:00:08]} 10.
d5 {[%clk 01:32:18]} {[%emt 00:01:25]} Na5 {[%clk 01:33:46]} {[%emt 00:00:15]}
11. Bc2 {[%clk 01:32:22]} {[%emt 00:00:24]} c6 {[%clk 01:34:01]} {[%emt
00:00:17]} 12. dxc6 {[%clk 01:31:03]} {[%emt 00:01:48]} Qc7 {[%emt 00:05:40]}
13. Bg5 {[%clk 01:26:15]} {[%emt 00:00:12]} Qxc6 {[%clk 01:31:31]} {[%emt
00:02:57]} 14. Bxf6 {[%clk 01:23:45]} {[%emt 00:02:59]} Bxf3 {[%clk 01:29:46]}
{[%emt 00:02:15]} 15. Qxf3 {[%clk 01:23:19]} {[%emt 00:00:57]} Bxf6 {[%clk
01:30:11]} {[%emt 00:00:04]} 16. Nd2 {[%clk 01:21:38]} {[%emt 00:02:10]} Rad8
{[%clk 01:28:36]} {[%emt 00:02:06]} 17. Rad1 {[%clk 01:17:17]} {[%emt
00:04:51]} Bg5 {[%clk 01:23:42]} {[%emt 00:05:24]} 18. Nf1 {[%clk 01:14:06]}
{[%emt 00:03:40]} Bf4 {[%clk 01:22:59]} {[%emt 00:01:14]} 19. Ne3 {[%clk
01:12:33]} {[%emt 00:02:03]} Bxe3 {[%clk 01:22:57]} {[%emt 00:00:32]} 20. Qxe3
{[%clk 01:12:48]} {[%emt 00:00:16]} Nc4 {[%clk 01:22:39]} {[%emt 00:00:47]} 21.
Qc1 {[%clk 01:12:23]} {[%emt 00:00:54]} a5 {[%clk 01:18:44]} {[%emt 00:04:26]}
22. Bb3 {[%clk 01:03:08]} {[%emt 00:09:46]} Nb6 {[%clk 01:18:25]} {[%emt
00:00:49]} 23. Bd5 {[%clk 01:02:02]} {[%emt 00:01:35]} Qc7 {[%clk 01:17:32]}
{[%emt 00:01:22]} 24. Re3 {[%clk 01:00:39]} {[%emt 00:01:55]} Kh8 {[%clk
01:13:52]} {[%emt 00:04:09]} 25. Rh3 {[%clk 00:59:45]} {[%emt 00:01:23]} f6
{[%clk 01:13:32]} {[%emt 00:00:50]} 26. Qe3 {[%clk 00:58:59]} {[%emt 00:01:17]}
h6 {[%clk 00:48:37]} {[%emt 00:25:25]} 27. Rd3 {[%clk 00:47:55]} {[%emt
00:11:33]} f5 {[%clk 00:42:05]} {[%emt 00:07:03]} 28. exf5 {[%clk 00:39:41]}
{[%emt 00:08:43]} Rxf5 {[%clk 00:40:07]} {[%emt 00:02:28]} 29. Be4 {[%clk
00:39:48]} {[%emt 00:00:24]} Rf6 {[%clk 00:39:14]} {[%emt 00:01:23]} 30. Qg5
{[%clk 00:38:19]} {[%emt 00:01:52]} Rdf8 {[%clk 00:36:03]} {[%emt 00:03:47]} 31.
Rdg3 {[%clk 00:36:49]} {[%emt 00:01:57]} Qa7 {[%clk 00:24:52]} {[%emt
00:11:45]} 32. Bg6 {[%clk 00:34:18]} {[%emt 00:03:01]} Kg8 {[%clk 00:22:54]}
{[%emt 00:02:27]} 33. Rxh6 {[%clk 00:33:28]} {[%emt 00:01:21]} gxh6 {[%clk
00:20:16]} {[%emt 00:03:08]} 34. Bf7+ {[%clk 00:33:44]} {[%emt 00:00:13]} Kxf7
{[%clk 00:20:03]} {[%emt 00:00:43]} 35. Qg7+ {[%clk 00:34:06]} {[%emt
00:00:09]} Ke6 {[%clk 00:20:30]} {[%emt 00:00:03]} 36. Qxa7 {[%clk 00:34:22]}
{[%emt 00:00:15]} Rxf2 {[%clk 00:20:56]} {[%emt 00:00:03]} 37. Rf3 {[%clk
00:34:04]} {[%emt 00:00:48]} R2xf3 {[%clk 00:21:00]} {[%emt 00:00:26]} 38. gxf3
{[%clk 00:34:24]} {[%emt 00:00:10]} Nc4 {[%clk 00:21:26]} {[%emt 00:00:04]} 39.
Qb7 {[%clk 00:33:25]} {[%emt 00:01:27]} Ne3 {[%clk 00:21:18]} {[%emt 00:00:40]}
40. Kf2 {[%clk 00:30:40]} {[%emt 00:03:14]} Nd5 {[%clk 00:21:40]} {[%emt
00:00:09]} 41. Qxb5 {[%clk 00:30:44]} {[%emt 00:00:26]} e4 {[%clk 00:22:04]}
{[%emt 00:00:06]} 42. Qc4 {[%clk 00:24:58]} {[%emt 00:06:15]} Rxf3+ {[%clk
00:22:12]} {[%emt 00:00:23]} 43. Kg2 {[%clk 00:24:29]} {[%emt 00:00:52]} Rf4
{[%clk 00:21:11]} {[%emt 00:01:39]} 44. Qc8+ {[%clk 00:21:29]} {[%emt
00:03:29]} Ke7 {[%clk 00:20:57]} {[%emt 00:00:45]} 45. Qb7+ {[%clk 00:20:23]}
{[%emt 00:01:35]} Ke6 {[%clk 00:21:18]} {[%emt 00:00:08]} 46. Qh7 {[%clk
00:19:23]} {[%emt 00:01:29]} Ne3+ {[%clk 00:20:47]} {[%emt 00:01:02]} 47. Kg3
{[%clk 00:19:34]} {[%emt 00:00:15]} Rf3+ {[%clk 00:20:34]} {[%emt 00:00:47]} 48.
Kh4 {[%clk 00:19:25]} {[%emt 00:00:39]} Ng2+ {[%clk 00:20:12]} {[%emt
00:00:53]} 49. Kh5 {[%clk 00:18:15]} {[%emt 00:01:26]} Rf5+ {[%clk 00:18:08]}
{[%emt 00:02:46]} 50. Kxh6 {[%clk 00:16:49]} {[%emt 00:01:57]} Rf6 {[%clk
00:17:34]} {[%emt 00:01:05]} 51. Kg5 {[%clk 00:16:59]} {[%emt 00:00:16]} Ne3
{[%clk 00:17:39]} {[%emt 00:00:29]} 52. Qxe4+ {[%clk 00:17:09]} {[%emt
00:00:20]} 1-0

[Event "NJSK 2026 Jeugd C"]
[Site "Helmond, Netherlands"]
[Date "2026.04.27"]
[Round "3.15"]
[White "Roersma, Dylan"]
[Black "Nguyen, Paul"]
[Result "1/2-1/2"]
[TimeControl "90min/40moves + 30sec/move"]
[WhiteTitle "-"]
[BlackTitle "-"]
[WhiteFideId "1097393"]
[BlackFideId "1095072"]
[WhiteElo "1846"]
[BlackElo "1845"]

1. e4 {[%clk 01:30:59]} e5 {[%clk 01:30:54]} {[%emt 00:00:07]} 2. Nf3 {[%clk
01:31:24]} {[%emt 00:00:05]} Nc6 {[%clk 01:31:19]} {[%emt 00:00:04]} 3. Bc4
{[%clk 01:31:49]} {[%emt 00:00:05]} Bc5 {[%clk 01:31:46]} {[%emt 00:00:04]} 4.
c3 {[%clk 01:32:16]} {[%emt 00:00:04]} Nf6 {[%clk 01:32:09]} {[%emt 00:00:06]}
5. d4 {[%clk 01:32:41]} {[%emt 00:00:04]} exd4 {[%clk 01:32:30]} {[%emt
00:00:10]} 6. e5 {[%clk 01:33:06]} {[%emt 00:00:05]} d5 {[%clk 01:32:40]}
{[%emt 00:00:20]} 7. Bb5 {[%clk 01:33:30]} {[%emt 00:00:06]} Ne4 {[%clk
01:32:38]} {[%emt 00:00:31]} 8. cxd4 {[%clk 01:33:53]} {[%emt 00:00:07]} Bb4+
{[%clk 01:32:55]} {[%emt 00:00:14]} 9. Bd2 {[%clk 01:34:17]} {[%emt 00:00:06]}
Bxd2+ {[%clk 01:32:52]} {[%emt 00:00:33]} 10. Nbxd2 {[%clk 01:34:23]} {[%emt
00:00:24]} O-O {[%clk 01:31:44]} {[%emt 00:01:38]} 11. Bxc6 {[%clk 01:31:04]}
{[%emt 00:03:49]} bxc6 {[%clk 01:32:08]} {[%emt 00:00:06]} 12. Qc2 {[%clk
01:29:56]} {[%emt 00:01:37]} Nxd2 {[%clk 01:19:49]} {[%emt 00:12:49]} 13. Nxd2
{[%clk 01:24:52]} {[%emt 00:05:34]} Qg5 {[%clk 01:16:15]} {[%emt 00:04:01]} 14.
g3 {[%clk 01:22:11]} {[%emt 00:03:14]} Rb8 {[%clk 01:15:18]} {[%emt 00:01:27]}
15. b3 {[%clk 01:01:15]} {[%emt 00:21:26]} Rb6 {[%clk 01:05:55]} {[%emt
00:09:53]} 16. O-O {[%clk 00:55:05]} {[%emt 00:06:40]} Bf5 {[%clk 00:41:01]}
{[%emt 00:25:24]} 17. Qc3 {[%clk 00:49:25]} {[%emt 00:06:09]} Re8 {[%clk
00:36:26]} {[%emt 00:05:05]} 18. Rac1 {[%clk 00:44:16]} {[%emt 00:05:39]} Re6
{[%clk 00:34:02]} {[%emt 00:02:54]} 19. f4 {[%clk 00:28:49]} {[%emt 00:15:57]}
Qh5 {[%clk 00:30:06]} {[%emt 00:04:26]} 20. Rf2 {[%clk 00:28:15]} {[%emt
00:01:04]} f6 {[%clk 00:28:14]} {[%emt 00:02:21]} 21. Nf3 {[%clk 00:17:51]}
{[%emt 00:10:55]} Be4 {[%clk 00:23:06]} {[%emt 00:05:38]} 22. Rcf1 {[%clk
00:12:21]} {[%emt 00:06:00]} Bxf3 {[%clk 00:16:33]} {[%emt 00:07:03]} 23. Qxf3
{[%clk 00:04:44]} {[%emt 00:08:07]} Qxf3 {[%clk 00:16:53]} {[%emt 00:00:09]} 24.
Rxf3 {[%clk 00:05:11]} {[%emt 00:00:04]} f5 {[%clk 00:17:15]} {[%emt 00:00:08]}
25. Rc3 {[%clk 00:05:29]} {[%emt 00:00:13]} Kf7 {[%clk 00:17:35]} {[%emt
00:00:09]} 26. Rc5 {[%clk 00:05:42]} {[%emt 00:00:17]} Ke7 {[%clk 00:17:57]}
{[%emt 00:00:09]} 27. Kf2 {[%clk 00:05:48]} {[%emt 00:00:24]} Rh6 {[%clk
00:17:47]} {[%emt 00:00:39]} 28. h4 {[%clk 00:05:59]} {[%emt 00:00:19]} Re6
{[%clk 00:17:49]} {[%emt 00:00:27]} 29. Rfc1 {[%clk 00:06:08]} {[%emt
00:00:22]} h5 {[%clk 00:18:12]} {[%emt 00:00:07]} 30. R1c2 {[%clk 00:06:16]}
{[%emt 00:00:22]} Kd7 {[%clk 00:18:26]} {[%emt 00:00:16]} 31. Kf3 {[%clk
00:06:23]} {[%emt 00:00:23]} g6 {[%clk 00:18:30]} {[%emt 00:00:25]} 32. Ke3
{[%clk 00:06:34]} {[%emt 00:00:19]} Kc8 {[%clk 00:18:01]} {[%emt 00:00:59]} 33.
R2c3 {[%clk 00:05:16]} {[%emt 00:01:50]} Kb7 {[%clk 00:18:05]} {[%emt
00:00:25]} 34. Kd3 {[%clk 00:01:31]} {[%emt 00:04:16]} Rb5 {[%clk 00:14:39]}
{[%emt 00:03:55]} 35. a4 {[%clk 00:00:42]} {[%emt 00:01:20]} Rb4 {[%clk
00:14:32]} {[%emt 00:00:37]} 36. Ke3 {[%clk 00:00:33]} {[%emt 00:00:39]} a6
{[%clk 00:13:13]} {[%emt 00:01:48]} 37. Rd3 {[%clk 00:00:53]} {[%emt 00:00:11]}
Kb6 {[%clk 00:13:21]} {[%emt 00:00:21]} 38. Kd2 {[%clk 00:00:42]} {[%emt
00:00:41]} Rxd4 {[%clk 00:12:05]} {[%emt 00:01:47]} 39. Rxc6+ {[%clk 00:00:35]}
{[%emt 00:00:37]} 1/2-1/2

[Event "NJSK 2026 Jeugd C"]
[Site "Helmond, Netherlands"]
[Date "2026.04.27"]
[Round "3.16"]
[White "Fu, Ziqing"]
[Black "Bajnath, Dhanesh"]
[Result "1/2-1/2"]
[TimeControl "90min/40moves + 30sec/move"]
[WhiteTitle "-"]
[BlackTitle "-"]
[WhiteFideId "40109623"]
[BlackFideId "40104842"]
[WhiteElo "1810"]
[BlackElo "1889"]

1. e4 {[%emt 00:10:13]} e5 {[%clk 01:21:41]} {[%emt 00:00:07]} 2. Nf3 {[%clk
01:28:59]} {[%emt 00:01:30]} Nc6 {[%clk 01:22:10]} 3. Nc3 {[%clk 01:27:58]}
{[%emt 00:01:31]} Nf6 {[%clk 01:22:39]} {[%emt 00:00:01]} 4. d4 {[%clk
01:26:48]} {[%emt 00:01:40]} exd4 {[%clk 01:23:07]} {[%emt 00:00:02]} 5. Nxd4
{[%clk 01:24:56]} {[%emt 00:02:22]} Bb4 {[%clk 01:23:36]} {[%emt 00:00:01]} 6.
Nxc6 {[%clk 01:23:48]} {[%emt 00:01:38]} bxc6 {[%clk 01:24:05]} {[%emt
00:00:02]} 7. Bd3 {[%clk 01:23:39]} {[%emt 00:00:38]} O-O {[%clk 01:24:20]}
{[%emt 00:00:15]} 8. O-O {[%clk 01:23:38]} {[%emt 00:00:31]} d5 {[%clk
01:24:46]} {[%emt 00:00:04]} 9. exd5 {[%clk 01:22:56]} {[%emt 00:01:11]} cxd5
{[%clk 01:25:15]} {[%emt 00:00:02]} 10. Bg5 {[%clk 01:21:40]} {[%emt 00:01:45]}
c6 {[%clk 01:24:51]} {[%emt 00:00:55]} 11. Qf3 {[%clk 01:20:52]} {[%emt
00:01:17]} Be7 {[%clk 01:25:09]} {[%emt 00:00:12]} 12. h3 {[%clk 01:19:58]}
{[%emt 00:01:24]} Be6 {[%clk 01:24:50]} {[%emt 00:00:50]} 13. Ne2 {[%clk
01:17:34]} {[%emt 00:02:53]} Nd7 {[%clk 01:09:14]} {[%emt 00:16:07]} 14. Bxe7
{[%clk 01:17:15]} {[%emt 00:00:49]} Qxe7 {[%clk 01:09:25]} {[%emt 00:00:19]} 15.
Rfe1 {[%clk 01:17:15]} {[%emt 00:00:28]} Qf6 {[%clk 00:55:07]} {[%emt
00:14:50]} 16. Qxf6 {[%clk 01:16:29]} {[%emt 00:01:15]} Nxf6 {[%clk 00:55:26]}
{[%emt 00:00:12]} 17. Nd4 {[%clk 01:16:47]} {[%emt 00:00:11]} Bd7 {[%clk
00:54:15]} {[%emt 00:01:42]} 18. Bf5 {[%clk 01:17:05]} {[%emt 00:00:11]} Bxf5
{[%clk 00:41:33]} {[%emt 00:13:13]} 19. Nxf5 {[%clk 01:17:14]} {[%emt
00:00:21]} Rfe8 {[%clk 00:41:21]} {[%emt 00:00:42]} 20. Ne7+ {[%clk 01:17:22]}
{[%emt 00:00:22]} Kf8 {[%clk 00:41:18]} {[%emt 00:00:33]} 21. Nxc6 {[%clk
01:17:41]} {[%emt 00:00:12]} Rec8 {[%clk 00:38:38]} {[%emt 00:03:09]} 22. Nd4
{[%clk 01:17:53]} {[%emt 00:00:18]} Rab8 {[%clk 00:37:55]} {[%emt 00:01:13]} 23.
b3 {[%clk 01:18:01]} {[%emt 00:00:21]} a5 {[%clk 00:31:53]} {[%emt 00:06:33]}
24. Rac1 {[%clk 01:17:50]} {[%emt 00:00:40]} Rc3 {[%clk 00:27:34]} {[%emt
00:04:50]} 25. Re2 {[%clk 01:17:13]} {[%emt 00:01:04]} Ne4 {[%clk 00:26:06]}
{[%emt 00:02:01]} 26. Nf5 {[%clk 01:14:58]} {[%emt 00:02:45]} Rc5 {[%clk
00:13:53]} {[%emt 00:12:43]} 27. a3 {[%clk 01:11:26]} {[%emt 00:04:02]} Rxb3
{[%clk 00:13:17]} {[%emt 00:01:06]} 28. Rce1 {[%clk 01:08:51]} {[%emt
00:03:04]} Rxa3 {[%clk 00:07:10]} {[%emt 00:06:39]} 29. f3 {[%clk 01:09:06]}
{[%emt 00:00:14]} g6 {[%clk 00:07:29]} {[%emt 00:00:12]} 30. Nh6 {[%clk
01:08:41]} {[%emt 00:00:54]} Kg7 {[%clk 00:06:52]} {[%emt 00:01:06]} 31. Nxf7
{[%clk 01:08:23]} {[%emt 00:00:48]} Kxf7 {[%clk 00:06:59]} {[%emt 00:00:23]} 32.
fxe4 {[%clk 01:08:48]} {[%emt 00:00:06]} dxe4 {[%clk 00:05:41]} {[%emt
00:01:48]} 33. Rxe4 {[%clk 01:08:52]} {[%emt 00:00:26]} Rxc2 {[%emt 00:02:58]}
34. Re7+ {[%clk 01:08:42]} Kf6 {[%clk 00:03:56]} {[%emt 00:00:25]} 35. h4
{[%clk 01:08:56]} {[%emt 00:00:17]} Rc6 {[%clk 00:00:47]} {[%emt 00:03:39]} 36.
Rxh7 {[%clk 01:08:45]} {[%emt 00:00:40]} Re6 {[%clk 00:00:38]} {[%emt
00:00:41]} 37. Rf1+ {[%clk 01:08:43]} {[%emt 00:00:32]} Ke5 {[%clk 00:00:48]}
{[%emt 00:00:20]} 38. Re1+ {[%clk 01:08:53]} {[%emt 00:00:19]} Kd6 {[%clk
00:00:52]} {[%emt 00:00:25]} 39. Rd1+ {[%clk 01:08:51]} {[%emt 00:00:33]} Kc5
{[%clk 00:00:33]} {[%emt 00:00:50]} 40. Rhd7 {[%clk 01:08:40]} {[%emt
00:00:39]} 1/2-1/2